fUSD/lending_fUSD_20250521
["ID","MTS","AMOUNT","RATE_DAILY","PERIOD"]
[361800006,1747813851087,-91.58410727,0.00035616,5]
[361800007,1747813851099,-500.0,0.00035616,2]
[361800008,1747813851110,-229.97589073,0.00035616,2]
[361800009,1747813851124,-270.02410927,0.00035616,2]
[361800010,1747813851135,-500.0,0.00035616,2]
[361800011,1747813851146,-500.0,0.00035616,2]
[361800012,1747813851157,-420.0,0.00035616,5]
[361800013,1747813851169,-500.0,0.00035616,2]
[361800014,1747813851180,-500.0,0.00035616,2]
[361800015,1747813851191,-500.0,0.00035616,2]
[361800016,1747813851203,-649.57258179,0.00035616,2]
[361800017,1747813851214,-1250.09,0.00035616,5]
[361800018,1747813851224,-420.0,0.00035616,5]
[361800019,1747813851235,-500.0,0.00035616,5]
[361800020,1747813851245,-1105.9,0.00035616,5]
[361800021,1747813851255,-500.0,0.00035616,5]
[361800022,1747813851267,-500.0,0.00035616,5]
[361800023,1747813851278,-420.0,0.00035616,5]
[361800024,1747813851290,-783.05,0.00035616,5]
[361800025,1747813851301,-484.62874862,0.00035616,5]
[361800026,1747813851312,-420.0,0.00035616,5]
[361800027,1747813851324,-420.0,0.00035616,5]
[361800028,1747813851336,-420.0,0.00035616,5]
[361800029,1747813851346,-420.0,0.00035616,5]
[361800030,1747813851357,-420.0,0.00035616,5]
[361800031,1747813851368,-420.0,0.00035616,5]
[361800032,1747813851379,-420.0,0.00035616,5]
[361800033,1747813851390,-420.0,0.00035616,5]
[361800034,1747813851401,-782.55,0.00035616,5]
[361800035,1747813851413,-690.68,0.00035616,5]
[361800036,1747813851424,-420.0,0.00035616,5]
[361800037,1747813851436,-527.55,0.00035616,5]
[361800038,1747813851448,-1528.33,0.00035616,5]
[361800039,1747813851459,-200.18413577,0.00035616,2]
[361800040,1747813851471,-420.0,0.00035616,5]
[361800041,1747813851483,-420.0,0.00035616,5]
[361800042,1747813851494,-420.0,0.00035616,5]
[361800043,1747813851506,-420.0,0.00035616,5]
[361800044,1747813851517,-420.0,0.00035616,5]
[361800045,1747813851530,-1098.85,0.00035616,5]
[361800046,1747813851541,-486.82,0.00035616,5]
[361800047,1747813851552,-718.32,0.00035616,5]
[361800048,1747813851563,-420.0,0.00035616,5]
[361800049,1747813851574,-1086.8,0.00035616,5]
[361800050,1747813851584,-420.0,0.00035616,5]
[361800051,1747813851595,-420.0,0.00035616,5]
[361800052,1747813851607,-1144.15,0.00035616,5]
[361800053,1747813851618,-420.0,0.00035616,5]
[361800054,1747813851629,-735.89,0.00035616,5]
[361800055,1747813851640,-420.0,0.00035616,5]
[361800056,1747813851650,-420.0,0.00035616,5]
[361800057,1747813851661,-420.0,0.00035616,5]
[361800058,1747813851672,-420.0,0.00035616,5]
[361800059,1747813851683,-420.0,0.00035616,5]
[361800060,1747813851694,-460.82,0.00035616,5]
[361800061,1747813851705,-420.0,0.00035616,5]
[361800062,1747813851716,-420.0,0.00035616,5]
[361800063,1747813851727,-420.0,0.00035616,5]
[361800064,1747813851737,-420.0,0.00035616,5]
[361800065,1747813851748,-581.23,0.00035616,5]
[361800066,1747813851758,-420.0,0.00035616,5]
[361800067,1747813851768,-420.0,0.00035616,5]
[361800068,1747813851779,-420.0,0.00035616,5]
[361800069,1747813851789,-420.0,0.00035616,5]
[361800070,1747813851800,-420.0,0.00035616,5]
[361800071,1747813851811,-420.0,0.00035616,5]
[361800072,1747813851821,-420.0,0.00035616,5]
[361800073,1747813851831,-420.0,0.00035616,5]
[361800074,1747813851842,-674.78,0.00035616,5]
[361800075,1747813851852,-535.79,0.00035616,5]
[361800076,1747813851863,-420.0,0.00035616,5]
[361800077,1747813851874,-1593.74,0.00035616,5]
[361800078,1747813851884,-1460.54,0.00035616,5]
[361800079,1747813851895,-420.0,0.00035616,5]
[361800080,1747813851906,-420.0,0.00035616,5]
[361800081,1747813851917,-832.51,0.00035616,5]
[361800082,1747813851927,-451.37,0.00035616,5]
[361800083,1747813851938,-420.0,0.00035616,5]
[361800084,1747813851948,-420.0,0.00035616,5]
[361800085,1747813851960,-420.0,0.00035616,5]
[361800086,1747813851971,-420.0,0.00035616,5]
[361800087,1747813851981,-420.0,0.00035616,5]
[361800088,1747813851991,-420.0,0.00035616,5]
[361800089,1747813852005,-666.86,0.00035616,5]
[361800090,1747813852015,-3599.59,0.00035616,5]
[361800091,1747813852026,-1451.92,0.00035616,5]
[361800092,1747813852510,-1050.71,0.00035616,5]
[361800093,1747813852570,-420.0,0.00035616,5]
[361800094,1747813852582,-661.19,0.00035616,5]
[361800095,1747813852593,-1117.78,0.00035616,5]
[361800096,1747813852603,-1133.24,0.00035616,5]
[361800097,1747813852615,-420.0,0.00035616,5]
[361800098,1747813852627,-420.0,0.00035616,5]
[361800099,1747813852637,-420.0,0.00035616,5]
[361800100,1747813852649,-653.59,0.00035616,5]
[361800101,1747813852660,-203.23240615,0.00035616,5]
[361800102,1747813852670,-534.87,0.00035616,5]
[361800103,1747813852681,-420.0,0.00035616,5]
[361800104,1747813852691,-2921.05,0.00035616,5]
[361800105,1747813852702,-420.0,0.00035616,5]
[361800106,1747813852713,-1203.49,0.00035616,5]
[361800107,1747813852724,-420.0,0.00035616,5]
[361800108,1747813852735,-420.0,0.00035616,5]
[361800109,1747813852746,-420.0,0.00035616,5]
[361800110,1747813852756,-1442.76,0.00035616,5]
[361800111,1747813852767,-561.2,0.00035616,5]
[361800112,1747813852779,-728.54,0.00035616,5]
[361800113,1747813852789,-468.74,0.00035616,5]
[361800114,1747813852799,-420.0,0.00035616,5]
[361800115,1747813852810,-2051.1,0.00035616,5]
[361800116,1747813852820,-420.0,0.00035616,5]
[361800117,1747813852832,-902.85,0.00035616,5]
[361800118,1747813852843,-545.0,0.00035616,5]
[361800119,1747813852853,-420.0,0.00035616,5]
[361800120,1747813852863,-1798.9,0.00035616,5]
[361800121,1747813852874,-420.0,0.00035616,5]
[361800122,1747813852884,-420.0,0.00035616,5]
[361800123,1747813852895,-420.0,0.00035616,5]
[361800124,1747813852905,-420.0,0.00035616,5]
[361800125,1747813852915,-420.0,0.00035616,5]
[361800126,1747813852926,-420.0,0.00035616,5]
[361800127,1747813852936,-502.64,0.00035616,5]
[361800128,1747813852946,-420.0,0.00035616,5]
[361800129,1747813852957,-420.0,0.00035616,5]
[361800130,1747813852968,-314.94409853,0.00035616,5]
[361800131,1747813852978,-2322.25,0.00035616,5]
[361800132,1747813852989,-1364.31,0.00035616,5]
[361800133,1747813853001,-151.0,0.00035616,7]
[361800134,1747813853013,-420.0,0.00035616,5]
[361800135,1747813853023,-151.0,0.00035616,7]
[361800136,1747813853034,-558.31,0.00035616,5]
[361800137,1747813853044,-420.0,0.00035616,5]
[361800138,1747813853054,-420.0,0.00035616,5]
[361800139,1747813853064,-420.0,0.00035616,5]
[361800140,1747813853075,-904.44,0.00035616,5]
[361800141,1747813853085,-420.0,0.00035616,5]
[361800142,1747813853095,-420.0,0.00035616,5]
[361800143,1747813853105,-2443.12,0.00035616,5]
[361800144,1747813853115,-420.0,0.00035616,5]
[361800145,1747813853126,-842.25,0.00035616,5]
[361800146,1747813853136,-478.81,0.00035616,5]
[361800147,1747813853146,-467.44,0.00035616,5]
[361800148,1747813853157,-420.0,0.00035616,5]
[361800149,1747813853167,-420.0,0.00035616,5]
[361800150,1747813853177,-420.0,0.00035616,5]
[361800151,1747813853186,-420.0,0.00035616,5]
[361800152,1747813853196,-1763.06,0.00035616,5]
[361800153,1747813853206,-1289.64,0.00035616,5]
[361800154,1747813853216,-420.0,0.00035616,5]
[361800155,1747813853226,-420.0,0.00035616,5]
[361800156,1747813853237,-674.0,0.00035616,5]
[361800157,1747813853247,-420.0,0.00035616,5]
[361800158,1747813853257,-606.21,0.00035616,5]
[361800159,1747813853267,-420.0,0.00035616,5]
[361800160,1747813853278,-420.0,0.00035616,5]
[361800161,1747813853288,-420.0,0.00035616,5]
[361800162,1747813853299,-1286.49,0.00035616,5]
[361800163,1747813853309,-151.0,0.00035616,7]
[361800164,1747813853320,-151.0,0.00035616,7]
[361800165,1747813853330,-420.0,0.00035616,5]
[361800166,1747813853340,-420.0,0.00035616,5]
[361800167,1747813853351,-420.0,0.00035616,5]
[361800168,1747813853361,-1140.29,0.00035616,5]
[361800169,1747813853371,-2879.71,0.00035616,5]
[361800170,1747813853381,-420.0,0.00035616,5]
[361800171,1747813853391,-420.0,0.00035616,5]
[361800172,1747813853401,-420.0,0.00035616,5]
[361800173,1747813853412,-510.94,0.00035616,5]
[361800174,1747813853421,-420.0,0.00035616,5]
[361800175,1747813853431,-3777.79,0.00035616,5]
[361800176,1747813853441,-1112.93,0.00035616,5]
[361800177,1747813853451,-341.20886434,0.00035616,5]
[361800178,1747813853461,-420.0,0.00035616,5]
[361800179,1747813853471,-420.0,0.00035616,5]
[361800180,1747813853481,-1426.24,0.00035616,5]
[361800181,1747813853491,-2015.57,0.00035616,5]
[361800182,1747813853500,-420.0,0.00035616,5]
[361800183,1747813853510,-172.33864643,0.00035616,5]
[361800184,1747813853520,-420.0,0.00035616,5]
[361800185,1747813853530,-420.0,0.00035616,5]
[361800186,1747813853541,-1887.02,0.00035616,5]
[361800187,1747813853551,-1738.35,0.00035616,5]
[361800188,1747813853562,-420.0,0.00035616,5]
[361800189,1747813853572,-420.0,0.00035616,5]
[361800190,1747813853582,-1902.28,0.00035616,5]
[361800191,1747813853592,-1824.25,0.00035616,5]
[361800192,1747813853602,-420.0,0.00035616,5]
[361800193,1747813853612,-185.37041631,0.00035616,5]
[361800194,1747813853622,-420.0,0.00035616,5]
[361800195,1747813853632,-509.35,0.00035616,5]
[361800196,1747813853643,-420.0,0.00035616,5]
[361800197,1747813853653,-420.0,0.00035616,5]
[361800198,1747813853663,-466.20595333,0.00035616,5]
[361800199,1747813853673,-1834.58,0.00035616,5]
[361800200,1747813853683,-522.37,0.00035616,5]
[361800201,1747813853692,-420.0,0.00035616,5]
[361800202,1747813853702,-1547.81,0.00035616,5]
[361800203,1747813853712,-420.0,0.00035616,5]
[361800204,1747813853722,-420.0,0.00035616,5]
[361800205,1747813853732,-420.0,0.00035616,5]
[361800206,1747813853742,-520.33,0.00035616,5]
[361800207,1747813853752,-2905.61,0.00035616,3]
[361800208,1747813853762,-420.0,0.00035616,5]
[361800209,1747813853772,-714.56,0.00035616,5]
[361800210,1747813853783,-652.66,0.00035616,5]
[361800211,1747813853793,-420.0,0.00035616,5]
[361800212,1747813853803,-420.0,0.00035616,5]
[361800213,1747813853813,-420.0,0.00035616,5]
[361800214,1747813853823,-3301.43,0.00035616,5]
[361800215,1747813853834,-2767.25,0.00035616,5]
[361800216,1747813853844,-2153.61,0.00035616,5]
[361800217,1747813853855,-420.0,0.00035616,5]
[361800218,1747813853865,-1365.79,0.00035616,5]
[361800219,1747813853875,-472.76,0.00035616,5]
[361800220,1747813853885,-1040.02,0.00035616,5]
[361800221,1747813853895,-420.0,0.00035616,5]
[361800222,1747813853904,-1676.23,0.00035616,5]
[361800223,1747813853914,-404.80087103,0.00035616,5]
[361800224,1747813853923,-420.0,0.00035616,5]
[361800225,1747813853934,-1378.98,0.00035616,5]
[361800226,1747813853944,-720.85,0.00035616,5]
[361800227,1747813853954,-3893.71,0.00035616,5]
[361800228,1747813853964,-3313.57,0.00035616,5]
[361800229,1747813853974,-420.0,0.00035616,5]
[361800230,1747813853984,-420.0,0.00035616,5]
[361800231,1747813853993,-845.53,0.00035616,5]
[361800232,1747813854006,-420.0,0.00035616,5]
[361800233,1747813854015,-811.06,0.00035616,5]
[361800234,1747813854025,-754.24,0.00035616,5]
[361800235,1747813854034,-1426.22,0.00035616,5]
[361800236,1747813854045,-813.49,0.00035616,5]
[361800237,1747813854054,-665.05,0.00035616,5]
[361800238,1747813854064,-420.0,0.00035616,5]
[361800239,1747813854074,-420.0,0.00035616,5]
[361800240,1747813854084,-1545.14,0.00035616,5]
[361800241,1747813854094,-420.0,0.00035616,5]
[361800242,1747813854104,-420.0,0.00035616,5]
[361800243,1747813854114,-2879.03,0.00035616,5]
[361800244,1747813854124,-420.0,0.00035616,5]
[361800245,1747813854134,-1493.83,0.00035616,5]
[361800246,1747813854144,-1444.51,0.00035616,5]
[361800247,1747813854155,-659.09,0.00035616,5]
[361800248,1747813854164,-1167.0,0.00035616,5]
[361800249,1747813854174,-913.41,0.00035616,5]
[361800250,1747813854184,-2638.61,0.00035616,5]
[361800251,1747813854194,-1818.63,0.00035616,5]
[361800252,1747813854204,-600.94,0.00035616,5]
[361800253,1747813854213,-420.0,0.00035616,5]
[361800254,1747813854223,-420.0,0.00035616,5]
[361800255,1747813854233,-420.0,0.00035616,5]
[361800256,1747813854243,-943.6,0.00035616,5]
[361800257,1747813854255,-445.14,0.00035616,5]
[361800258,1747813854265,-420.0,0.00035616,5]
[361800259,1747813854275,-204.46099538,0.00035616,5]
[361800260,1747813854286,-420.0,0.00035616,5]
[361800261,1747813854296,-420.0,0.00035616,5]
[361800262,1747813854306,-420.0,0.00035616,5]
[361800263,1747813854317,-420.0,0.00035616,5]
[361800264,1747813854327,-420.0,0.00035616,5]
[361800265,1747813854337,-432.23,0.00035616,5]
[361800266,1747813854347,-420.0,0.00035616,5]
[361800267,1747813854356,-756.79,0.00035616,5]
[361800268,1747813854366,-2175.25,0.00035616,5]
[361800269,1747813854376,-1092.56,0.00035616,5]
[361800270,1747813854386,-3340.05,0.00035616,5]
[361800271,1747813854396,-420.0,0.00035616,5]
[361800272,1747813854407,-420.0,0.00035616,5]
[361800273,1747813854416,-592.75,0.00035616,5]
[361800274,1747813854426,-420.0,0.00035616,5]
[361800275,1747813854436,-1252.01,0.00035616,5]
[361800276,1747813854447,-1416.46,0.00035616,5]
[361800277,1747813854457,-420.0,0.00035616,5]
[361800278,1747813854467,-420.0,0.00035616,5]
[361800279,1747813854477,-391.08811633,0.00035616,5]
[361800280,1747813854487,-420.0,0.00035616,5]
[361800281,1747813854497,-2050.85,0.00035616,5]
[361800282,1747813854507,-2141.56,0.00035616,5]
[361800283,1747813854518,-420.0,0.00035616,5]
[361800284,1747813854529,-1869.07,0.00035616,5]
[361800285,1747813854540,-420.0,0.00035616,5]
[361800286,1747813854550,-420.0,0.00035616,5]
[361800287,1747813854561,-1834.32,0.00035616,5]
[361800288,1747813854571,-1378.27,0.00035616,5]
[361800289,1747813854581,-1128.98,0.00035616,5]
[361800290,1747813854592,-420.0,0.00035616,5]
[361800291,1747813854601,-434.64,0.00035616,5]
[361800292,1747813854611,-1332.12,0.00035616,5]
[361800293,1747813854621,-420.0,0.00035616,5]
[361800294,1747813854631,-420.0,0.00035616,5]
[361800295,1747813854641,-420.0,0.00035616,5]
[361800296,1747813854651,-1056.39,0.00035616,5]
[361800297,1747813854661,-2380.65,0.00035616,5]
[361800298,1747813854671,-630.16,0.00035616,5]
[361800299,1747813854681,-420.0,0.00035616,5]
[361800300,1747813854690,-2030.78,0.00035616,5]
[361800301,1747813854700,-420.0,0.00035616,5]
[361800302,1747813854710,-989.26,0.00035616,5]
[361800303,1747813854728,-400.36678569,0.00035616,5]
[361800304,1747813854739,-420.0,0.00035616,5]
[361800305,1747813854750,-420.0,0.00035616,5]
[361800306,1747813854760,-1845.13,0.00035616,5]
[361800307,1747813854770,-1427.9,0.00035616,5]
[361800308,1747813854780,-420.0,0.00035616,5]
[361800309,1747813854790,-2336.15,0.00035616,5]
[361800310,1747813854800,-1953.57,0.00035616,5]
[361800311,1747813854810,-420.0,0.00035616,5]
[361800312,1747813854820,-420.0,0.00035616,5]
[361800313,1747813854830,-420.0,0.00035616,5]
[361800314,1747813854840,-1998.04,0.00035616,5]
[361800315,1747813854850,-184.24675201,0.00035616,5]
[361800316,1747813854907,-235.75324799,0.00035616,5]
[361800317,1747813854917,-420.0,0.00035616,5]
[361800318,1747813854927,-420.0,0.00035616,5]
[361800319,1747813854937,-420.0,0.00035616,5]
[361800320,1747813854947,-420.0,0.00035616,5]
[361800321,1747813854957,-660.11,0.00035616,5]
[361800322,1747813854967,-340.264474,0.00035616,5]
[361800323,1747813854980,-79.735526,0.00035616,5]
[361800324,1747813854990,-420.0,0.00035616,5]
[361800325,1747813855002,-658.33,0.00035616,5]
[361800326,1747813855016,-420.0,0.00035616,5]
[361800327,1747813855026,-420.0,0.00035616,5]
[361800328,1747813855037,-717.234474,0.00035616,5]
[361800329,1747813855055,-541.86500188,0.00035616,5]
[361800330,1747813855085,-5.12052412,0.00035616,5]
[361800331,1747813855095,-1573.82,0.00035616,5]
[361800332,1747813855105,-420.0,0.00035616,5]
[361800333,1747813855115,-420.0,0.00035616,5]
[361800334,1747813855125,-54.94924606,0.00035616,5]
[361800335,1747813855285,-1335.50223488,0.00035616,5]
[361800336,1747813952839,321.0,0.00027397,120]
[361800337,1747814351672,302.5,0.00027397,120]
[361800338,1747814671956,1203.46,0.00025,60]
[361800341,1747814945107,-163.1,0.00013699,2]
[361800342,1747814945129,-169.28,0.00026675,2]
[361800343,1747814945152,-200.0,0.00028739,117]
[361800344,1747814945175,-230.0,0.00031774,14]
[361800368,1747815031624,-230.0,0.00032,14]
[361800370,1747815031634,-200.0,0.00032119,117]
[361800372,1747815031644,-207.4,0.00032239,2]
[361800374,1747815031654,-529.88,0.00032358,2]
[361800376,1747815031665,-200.0,0.00032554,117]
[361800378,1747815031674,-230.0,0.00033075,30]
[361800379,1747815031684,-150.0,0.000331,14]
[361800380,1747815031694,-378.621825,0.00033129,5]
[361800381,1747815031704,-15749.059676,0.00033129,5]
[361800382,1747815031714,-1433.765394,0.00033129,5]
[361800383,1747815031724,-926.313011,0.00033129,5]
[361800384,1747815031734,-799.56,0.00033149,30]
[361800385,1747815031745,-378.621825,0.00033149,5]
[361800386,1747815031755,-10819.08039138,0.00033149,5]
[361800808,1747815038187,-508.2,0.00031967,30]
[361800825,1747815039779,-2200.0,0.00031967,30]
[361800826,1747815040039,-1037.6,0.00031967,30]
[361800827,1747815040051,-1189.32885801,0.00031967,30]
[361800828,1747815040064,-1806.9779484,0.00031967,30]
[361800856,1747815044795,-3742.4985933,0.00031967,30]
[361800857,1747815044808,-4929.97928462,0.00033149,5]
[361800858,1747815044819,-14.31647787,0.00033149,5]
[361800859,1747815045003,-1419.44891613,0.00033149,5]
[361800860,1747815045016,-926.313011,0.00033149,5]
[361800861,1747815045027,-387.84,0.00033374,120]
[361800862,1747815045038,-378.621825,0.00033423,5]
[361800863,1747815045048,-15749.059676,0.00033423,5]
[361800864,1747815045059,-1433.765394,0.00033423,5]
[361800865,1747815045069,-926.313011,0.00033423,5]
[361800866,1747815045080,-154.69,0.000335,31]
[361800867,1747815045097,-215.0738,0.00033608,2]
[361800868,1747815045108,-378.621825,0.00033697,5]
[361800869,1747815045119,-15749.059676,0.00033697,5]
[361800870,1747815045130,-1433.765394,0.00033697,5]
[361800871,1747815045141,-926.313011,0.00033697,5]
[361800872,1747815045152,-154.16,0.00033855,2]
[361800873,1747815045163,-206.17613652,0.000339,29]
[361800874,1747815045174,-206.17613642,0.00034127,30]
[361800875,1747815045185,-304.66,0.00034174,2]
[361800876,1747815045196,-301.71,0.00034174,2]
[361800877,1747815045207,-301.72,0.00034243,2]
[361800878,1747815045218,-305.63,0.00034243,2]
[361800879,1747815045229,-303.16,0.00034243,2]
[361800880,1747815045240,-303.76,0.00034243,2]
[361800881,1747815045252,-303.79,0.00034243,2]
[361800882,1747815045263,-301.7,0.00034243,2]
[361800883,1747815045274,-300.28,0.00034243,2]
[361800884,1747815045284,-305.16,0.00034243,2]
[361800885,1747815045295,-301.57,0.00034243,2]
[361800886,1747815045306,-302.55,0.00034243,2]
[361800887,1747815045316,-304.15,0.00034243,2]
[361800888,1747815045327,-301.65,0.00034243,2]
[361800889,1747815045338,-304.35,0.00034243,2]
[361800890,1747815045348,-305.36,0.00034243,2]
[361800891,1747815045359,-302.11,0.00034243,2]
[361800893,1747815045370,-303.24,0.00034243,2]
[361800895,1747815045380,-304.24,0.00034243,2]
[361800896,1747815045391,-303.0,0.00034243,2]
[361800897,1747815045401,-151.8,0.00034244,2]
[361800898,1747815045411,-211.93,0.00034336,2]
[361800899,1747815045422,-206.17613642,0.00034355,30]
[361800900,1747815045433,-1000.0,0.00034377,2]
[361800902,1747815045447,-166.31,0.00034391,30]
[361800904,1747815045458,-151.0,0.00034419,2]
[361800906,1747815045468,-154.78625474,0.00034419,2]
[361800908,1747815045479,-1199.20597015,0.00034419,2]
[361800909,1747815045490,-668.65185757,0.00034419,2]
[361800910,1747815045502,-668.65185757,0.00034419,2]
[361800911,1747815045513,-151.47754693,0.00034419,2]
[361800912,1747815045525,-18948.57371509,0.00034439,2]
[361800913,1747815045556,-3271.53628491,0.00034439,2]
[361800914,1747815045568,-150.0,0.00034521,2]
[361800915,1747815045578,-150.0,0.00034521,2]
[361800916,1747815045588,-150.43,0.00034521,2]
[361800917,1747815045599,-632.927167,0.00034547,4]
[361800918,1747815045610,-150.0,0.00034578,2]
[361800919,1747815045621,-206.17613642,0.00034582,31]
[361800920,1747815045632,-529.88,0.00034622,2]
[361800921,1747815045642,-304.27,0.00034675,2]
[361800922,1747815045653,-305.84,0.00034675,2]
[361800923,1747815045664,-170.04,0.00034678,2]
[361800924,1747815045675,-230.0,0.00034729,30]
[361800925,1747815045686,-206.17613642,0.00034809,31]
[361800926,1747815045698,-1697.5289,0.00034832,2]
[361800927,1747815045709,-150.34,0.00034878,2]
[361800928,1747815045720,-164.9,0.00034878,2]
[361800929,1747815045731,-150.0,0.00034889,2]
[361800930,1747815045742,-2229.95279144,0.00034899,2]
[361800931,1747815045754,-491.2437,0.000349,2]
[361800932,1747815045765,-301.31,0.00034902,2]
[361800933,1747815045775,-303.01,0.00034902,2]
[361800934,1747815045786,-305.02,0.00034902,2]
[361800935,1747815045797,-169.35563971,0.00034903,2]
[361800936,1747815045808,-283.54300008,0.00034905,2]
[361800937,1747815045819,-693.3919763,0.00034967,2]
[361800938,1747815045829,-223.0315306,0.00034977,2]
[361800939,1747815045840,-46261.5468677,0.0003499,2]
[361800940,1747815045851,-172.1,0.0003499,2]
[361800941,1747815045862,-2229.95279138,0.00034998,2]
[361800942,1747815045873,-500.0,0.00034999,7]
[361800943,1747815045884,-204.63429257,0.00034999,7]
[361800944,1747815045895,-246.40473237,0.00034999,7]
[361800945,1747815045906,-293.48449967,0.00035,30]
[361800946,1747815045917,-151.75,0.00035,120]
[361800947,1747815045927,-3000.0,0.00035,2]
[361800948,1747815045937,-3000.0,0.00035,2]
[361800949,1747815045948,-3000.0,0.00035,2]
[361800951,1747815045958,-3000.0,0.00035,2]
[361800953,1747815045969,-3000.0,0.00035,2]
[361800955,1747815045979,-3000.0,0.00035,2]
[361800957,1747815045990,-215578.55223911,0.00035,35]
[361800959,1747815046004,-1788.3918438,0.00035,35]
[361800975,1747815046574,-39644.42511911,0.00035,35]
[361800976,1747815046584,-283.54300003,0.00035003,2]
[361800977,1747815046594,-1268.09,0.00035006,5]
[361800978,1747815046604,-1244.23,0.00035009,5]
[361800979,1747815046614,-206.17613642,0.00035036,32]
[361800980,1747815046624,-213.0,0.00035078,2]
[361800981,1747815046635,-207.0,0.00035078,2]
[361800982,1747815046645,-2229.95279138,0.00035097,2]
[361800983,1747815046656,-283.54300003,0.00035102,2]
[361800984,1747815046666,-576.104,0.00035143,41]
[361800985,1747815046679,-2229.95279138,0.00035196,2]
[361800986,1747815046690,-155.0,0.00035196,2]
[361800987,1747815046701,-150.052117,0.00035198,120]
[361800988,1747815046710,-283.54300003,0.000352,2]
[361800989,1747815046720,-200.0,0.000352,117]
[361800990,1747815046731,-206.17613642,0.00035264,32]
[361800991,1747815046741,-2229.95279138,0.00035295,2]
[361800992,1747815046752,-150.052117,0.00035298,120]
[361800993,1747815046762,-283.54300003,0.00035298,2]
[361800994,1747815046773,-200.0,0.00035331,10]
[361800995,1747815046783,-323.34962609,0.00035341,120]
[361800996,1747815046792,-304.47,0.00035341,2]
[361800997,1747815046800,-304.37,0.00035341,2]
[361800998,1747815046809,-302.46,0.00035341,2]
[361800999,1747815046819,-450.6,0.00035342,2]
[361801000,1747815046828,-293.14,0.00035342,2]
[361801001,1747815046837,-453.03,0.00035342,2]
[361801002,1747815046847,-170.04,0.00035342,2]
[361801003,1747815046858,-353.17,0.00035342,2]
[361801004,1747815046867,-2229.95279138,0.00035394,2]
[361801005,1747815046878,-283.54300003,0.00035397,2]
[361801006,1747815046888,-150.052104,0.00035398,120]
[361801007,1747815046898,-162.05091286,0.000354,15]
[361801008,1747815046908,-15420.5156226,0.0003549,2]
[361801009,1747815046919,-206.17613642,0.00035491,32]
[361801010,1747815046930,-2229.95279138,0.00035493,2]
[361801012,1747815046941,-283.54300003,0.00035495,2]
[361801013,1747815046950,-150.052111,0.00035498,120]
[361801014,1747815046966,-2000.0,0.000355,5]
[361801015,1747815046976,-2000.0,0.000355,5]
[361801016,1747815046987,-2000.0,0.000355,5]
[361801017,1747815046997,-2000.0,0.000355,5]
[361801018,1747815047007,-2000.0,0.000355,5]
[361801019,1747815047017,-719.04747942,0.00035515,2]
[361801020,1747815047027,-174.67896929,0.00035516,2]
[361801021,1747815047037,-15420.5156226,0.00035589,2]
[361801022,1747815047048,-2229.95279138,0.00035592,2]
[361801023,1747815047058,-283.54300003,0.00035593,2]
[361801024,1747815047069,-15420.5156226,0.00035595,2]
[361801025,1747815047078,-30841.0312452,0.00035596,2]
[361801026,1747815047089,-150.052117,0.00035598,120]